[Event "*** Monthly 3|2 Blitz Masters"]
[Site "Chess.com"]
[Date "2014.10.28"]
[Round "2"]
[White "ruzomberok"]
[Black "Carolina-moon"]
[Result "1/2-1/2"]
[WhiteElo "2237"]
[BlackElo "2069"]
[TimeControl "180+2"]
[EndTime "12:16:30 PDT"]
[Termination "Game drawn by repetition"]

1. d4 {[%clk 0:03:00]} 1... f5 {[%clk 0:02:58.4]} 2. Bg5 {[%clk 0:02:57.2]} 2...
g6 {[%clk 0:02:57.7]} 3. c4 {[%clk 0:02:46.1]} 3... Bg7 {[%clk 0:02:58.2]} 4.
Nc3 {[%clk 0:02:43.3]} 4... d6 {[%clk 0:02:43.5]} 5. e4 {[%clk 0:02:41.4]} 5...
Nc6 {[%clk 0:02:35.3]} 6. Nf3 {[%clk 0:02:38.2]} 6... h6 {[%clk 0:02:17]} 7. Be3
{[%clk 0:02:35]} 7... e5 {[%clk 0:02:05.9]} 8. exf5 {[%clk 0:02:29.5]} 8... Bxf5
{[%clk 0:02:01.5]} 9. Bd3 {[%clk 0:02:27.2]} 9... Nge7 {[%clk 0:01:57.7]} 10. d5
{[%clk 0:02:12.3]} 10... Nd4 {[%clk 0:01:45.9]} 11. Bxd4 {[%clk 0:02:11.9]}
11... exd4 {[%clk 0:01:46.6]} 12. Ne2 {[%clk 0:02:13.3]} 12... c5 {[%clk
0:01:34.5]} 13. dxc6 {[%clk 0:02:10.7]} 13... bxc6 {[%clk 0:01:22.9]} 14. Nexd4
{[%clk 0:01:57.3]} 14... Bxd4 {[%clk 0:00:49.3]} 15. Nxd4 {[%clk 0:01:54.8]}
15... Qa5+ {[%clk 0:00:47.8]} 16. Kf1 {[%clk 0:01:49.5]} 16... O-O {[%clk
0:00:47.4]} 17. Nxf5 {[%clk 0:01:42.6]} 17... Nxf5 {[%clk 0:00:46.2]} 18. Kg1
{[%clk 0:01:35.1]} 18... Rae8 {[%clk 0:00:42.9]} 19. h3 {[%clk 0:01:35]} 19...
Nd4 {[%clk 0:00:32]} 20. g3 {[%clk 0:01:11.3]} 20... Re1+ {[%clk 0:00:23.6]} 21.
Qxe1 {[%clk 0:01:12.8]} 21... Nf3+ {[%clk 0:00:24.8]} 22. Kg2 {[%clk 0:01:14.5]}
22... Nxe1+ {[%clk 0:00:24.9]} 23. Rhxe1 {[%clk 0:01:15.7]} 23... Qd2 {[%clk
0:00:22.1]} 24. Be2 {[%clk 0:01:16]} 24... Qxb2 {[%clk 0:00:18.5]} 25. Bf3
{[%clk 0:01:15.4]} 25... Qc3 {[%clk 0:00:10.1]} 26. Bxc6 {[%clk 0:01:11.2]}
26... Kg7 {[%clk 0:00:10.3]} 27. Bd5 {[%clk 0:01:09.8]} 27... Qd4 {[%clk
0:00:09.3]} 28. Rf1 {[%clk 0:01:04.6]} 28... Rxf2+ {[%clk 0:00:08.6]} 29. Rxf2
{[%clk 0:01:06.1]} 29... Qxa1 {[%clk 0:00:10.3]} 30. Rf7+ {[%clk 0:01:07.5]}
30... Kh8 {[%clk 0:00:11.2]} 31. Rf8+ {[%clk 0:01:08.8]} 31... Kg7 {[%clk
0:00:11.9]} 32. Rf7+ {[%clk 0:01:10.4]} 32... Kh8 {[%clk 0:00:11.1]} 33. Rf8+
{[%clk 0:01:11.6]} 33... Kg7 {[%clk 0:00:11.3]} 34. Rf7+ {[%clk 0:01:12.3]}
34... Kh8 {[%clk 0:00:11.2]} 1/2-1/2

[Event "*** Monthly 3|2 Blitz Masters"]
[Site "Chess.com"]
[Date "2014.10.28"]
[Round "2"]
[White "vovkcoach"]
[Black "MichiganEagle"]
[Result "1-0"]
[WhiteElo "2521"]
[BlackElo "2291"]
[TimeControl "180+2"]
[EndTime "12:17:43 PDT"]
[Termination "vovkcoach won by resignation"]

1. e4 {[%clk 0:03:00]} 1... c5 {[%clk 0:02:57]} 2. Nf3 {[%clk 0:02:59.5]} 2...
e6 {[%clk 0:02:58.2]} 3. g3 {[%clk 0:02:59.1]} 3... Nc6 {[%clk 0:02:50.1]} 4.
Bg2 {[%clk 0:02:59.4]} 4... Nf6 {[%clk 0:02:51]} 5. Qe2 {[%clk 0:02:58.5]} 5...
d5 {[%clk 0:02:47.2]} 6. d3 {[%clk 0:02:54.4]} 6... Be7 {[%clk 0:02:48.2]} 7.
O-O {[%clk 0:02:54.1]} 7... O-O {[%clk 0:02:49.2]} 8. e5 {[%clk 0:02:53.5]} 8...
Nd7 {[%clk 0:02:49.7]} 9. c4 {[%clk 0:02:55.1]} 9... Nb6 {[%clk 0:01:53.2]} 10.
Nc3 {[%clk 0:02:53.9]} 10... f5 {[%clk 0:01:42]} 11. exf6 {[%clk 0:02:39.9]}
11... Bxf6 {[%clk 0:01:42.9]} 12. Bf4 {[%clk 0:02:28.1]} 12... a6 {[%clk
0:01:19.1]} 13. Rfe1 {[%clk 0:02:20.3]} 13... Kh8 {[%clk 0:01:16.7]} 14. Rad1
{[%clk 0:02:17.1]} 14... Nd4 {[%clk 0:01:16.1]} 15. Nxd4 {[%clk 0:02:15.1]}
15... cxd4 {[%clk 0:01:18]} 16. Nb1 {[%clk 0:02:12.2]} 16... Bd7 {[%clk
0:01:06.6]} 17. c5 {[%clk 0:02:06.3]} 17... Na4 {[%clk 0:01:03.6]} 18. Bd6
{[%clk 0:02:00.3]} 18... Re8 {[%clk 0:01:01.8]} 19. b3 {[%clk 0:01:43]} 19...
Nc3 {[%clk 0:01:02]} 20. Nxc3 {[%clk 0:01:44.4]} 20... dxc3 {[%clk 0:01:03.9]}
21. d4 {[%clk 0:01:46.3]} 21... b6 {[%clk 0:00:53.5]} 22. Qc2 {[%clk 0:01:37.2]}
22... bxc5 {[%clk 0:00:50.9]} 23. Bxc5 {[%clk 0:01:39.1]} 23... Qa5 {[%clk
0:00:40.6]} 24. Re3 {[%clk 0:01:35.8]} 24... Rac8 {[%clk 0:00:32]} 25. Rxc3
{[%clk 0:01:36.3]} 25... Rc6 {[%clk 0:00:22.7]} 26. b4 {[%clk 0:01:35.4]} 26...
Qc7 {[%clk 0:00:23.2]} 27. a4 {[%clk 0:01:32.5]} 27... Qb7 {[%clk 0:00:23.2]}
28. Bf1 {[%clk 0:01:31.8]} 28... Rcc8 {[%clk 0:00:23.5]} 29. Rb1 {[%clk
0:01:15.8]} 29... e5 {[%clk 0:00:22.8]} 30. dxe5 {[%clk 0:00:59.4]} 30... Bxe5
{[%clk 0:00:23.9]} 31. Re3 {[%clk 0:01:00.5]} 31... d4 {[%clk 0:00:20.7]} 32.
Bg2 {[%clk 0:00:56.1]} 32... Bc6 {[%clk 0:00:12.8]} 33. Bxc6 {[%clk 0:00:56.3]}
33... Qxc6 {[%clk 0:00:14.7]} 34. Re2 {[%clk 0:00:52.7]} 34... Bf6 {[%clk
0:00:13.9]} 35. Rbe1 {[%clk 0:00:47.1]} 35... Rxe2 {[%clk 0:00:13.5]} 36. Rxe2
{[%clk 0:00:49]} 36... a5 {[%clk 0:00:14.2]} 37. b5 {[%clk 0:00:47.8]} 37... Qf3
{[%clk 0:00:12.3]} 38. Qe4 {[%clk 0:00:45.6]} 38... Qxe4 {[%clk 0:00:12.8]} 39.
Rxe4 {[%clk 0:00:47.5]} 39... h6 {[%clk 0:00:14.1]} 40. Bxd4 {[%clk 0:00:47.5]}
40... Rc1+ {[%clk 0:00:15.1]} 41. Kg2 {[%clk 0:00:47.7]} 41... Bxd4 {[%clk
0:00:13]} 42. Rxd4 {[%clk 0:00:48]} 42... Rb1 {[%clk 0:00:14.9]} 43. Rd8+ {[%clk
0:00:48.3]} 43... Kh7 {[%clk 0:00:16.5]} 44. Ra8 {[%clk 0:00:50.2]} 1-0

[Event "*** Monthly 3|2 Blitz Masters"]
[Site "Chess.com"]
[Date "2014.10.28"]
[Round "2"]
[White "WanderingPuppet"]
[Black "GedoGluperd"]
[Result "0-1"]
[WhiteElo "2064"]
[BlackElo "2312"]
[TimeControl "180+2"]
[EndTime "12:17:55 PDT"]
[Termination "GedoGluperd won by resignation"]

1. e4 {[%clk 0:03:00]} 1... g6 {[%clk 0:02:58.7]} 2. d4 {[%clk 0:03:00.4]} 2...
Bg7 {[%clk 0:03:00.2]} 3. Nc3 {[%clk 0:03:02]} 3... d6 {[%clk 0:03:01.4]} 4. f4
{[%clk 0:03:02.3]} 4... a6 {[%clk 0:03:02.1]} 5. Nf3 {[%clk 0:03:02.7]} 5... b5
{[%clk 0:03:03.2]} 6. a4 {[%clk 0:03:03.8]} 6... b4 {[%clk 0:03:03.9]} 7. Nd5
{[%clk 0:03:05.4]} 7... a5 {[%clk 0:03:05.4]} 8. Bd3 {[%clk 0:03:02.3]} 8... e6
{[%clk 0:03:05.6]} 9. Ne3 {[%clk 0:03:02.9]} 9... Bb7 {[%clk 0:03:06.5]} 10. O-O
{[%clk 0:03:03.1]} 10... Nf6 {[%clk 0:03:07.8]} 11. e5 {[%clk 0:03:03.5]} 11...
Nd5 {[%clk 0:03:08.9]} 12. Nxd5 {[%clk 0:03:04.5]} 12... Bxd5 {[%clk 0:03:10]}
13. c4 {[%clk 0:03:00]} 13... bxc3 {[%clk 0:03:09.5]} 14. bxc3 {[%clk
0:03:01.9]} 14... O-O {[%clk 0:03:09.7]} 15. Ng5 {[%clk 0:02:52.6]} 15... c5
{[%clk 0:03:04.4]} 16. Be3 {[%clk 0:02:27.4]} 16... cxd4 {[%clk 0:03:05.1]} 17.
cxd4 {[%clk 0:02:29.3]} 17... Nc6 {[%clk 0:03:05.1]} 18. Be4 {[%clk 0:02:17.7]}
18... Nb4 {[%clk 0:02:57.7]} 19. Qf3 {[%clk 0:02:05.1]} 19... Qd7 {[%clk
0:02:52.8]} 20. Bxd5 {[%clk 0:01:57.1]} 20... Nxd5 {[%clk 0:02:52.8]} 21. Ne4
{[%clk 0:01:54.8]} 21... dxe5 {[%clk 0:02:49.9]} 22. fxe5 {[%clk 0:01:53.3]}
22... Rab8 {[%clk 0:02:46]} 23. Nc5 {[%clk 0:01:35.7]} 23... Qe7 {[%clk
0:02:40.6]} 24. Bd2 {[%clk 0:01:21.7]} 24... Qh4 {[%clk 0:02:38.4]} 25. Qe4
{[%clk 0:01:17.2]} 25... Qxe4 {[%clk 0:02:36.3]} 26. Nxe4 {[%clk 0:01:19.1]}
26... Nb4 {[%clk 0:02:30.2]} 27. Bg5 {[%clk 0:01:10.1]} 27... Nd5 {[%clk
0:02:24.5]} 28. Nc5 {[%clk 0:01:01.7]} 28... Rb4 {[%clk 0:02:20.7]} 29. Rad1
{[%clk 0:00:53.4]} 29... h6 {[%clk 0:02:20.8]} 30. Bc1 {[%clk 0:00:49.4]} 30...
Rc8 {[%clk 0:02:15.2]} 31. Ba3 {[%clk 0:00:46.6]} 31... Rbb8 {[%clk 0:02:11.4]}
32. Rd3 {[%clk 0:00:44]} 32... Rd8 {[%clk 0:02:01]} 33. Rdf3 {[%clk 0:00:42.2]}
33... Nb4 {[%clk 0:01:33.9]} 34. Rxf7 {[%clk 0:00:35.7]} 34... Rb6 {[%clk
0:01:33.7]} 35. Rd7 {[%clk 0:00:29.4]} 35... Rf8 {[%clk 0:01:31.7]} 36. Rxf8+
{[%clk 0:00:23.8]} 36... Bxf8 {[%clk 0:01:33]} 37. Rd8 {[%clk 0:00:21.4]} 37...
Nc6 {[%clk 0:01:07.9]} 38. Rxf8+ {[%clk 0:00:20.9]} 38... Kg7 {[%clk 0:01:08.8]}
39. Nxe6+ {[%clk 0:00:19.5]} 39... Kh7 {[%clk 0:01:09.1]} 40. Rf7+ {[%clk
0:00:18.9]} 40... Kh8 {[%clk 0:01:10.6]} 41. Bc5 {[%clk 0:00:15.3]} 41... Rb1+
{[%clk 0:01:10.6]} 42. Kf2 {[%clk 0:00:15.8]} 42... Nb4 {[%clk 0:01:11.9]} 43.
Rf8+ {[%clk 0:00:09.6]} 43... Kh7 {[%clk 0:01:12.7]} 44. Rf7+ {[%clk 0:00:11.1]}
44... Kg8 {[%clk 0:01:13.6]} 45. Rg7+ {[%clk 0:00:11.7]} 45... Kh8 {[%clk
0:01:14.5]} 46. Be7 {[%clk 0:00:11.5]} 46... Nd5 {[%clk 0:01:14.1]} 47. Bf6
{[%clk 0:00:11.5]} 47... Rb2+ {[%clk 0:01:15.1]} 48. Ke1 {[%clk 0:00:11.6]}
48... Nxf6 {[%clk 0:01:14.8]} 49. exf6 {[%clk 0:00:12.5]} 49... Rb6 {[%clk
0:01:16.4]} 50. f7 {[%clk 0:00:12.4]} 50... Rxe6+ {[%clk 0:01:17.5]} 51. Kd2
{[%clk 0:00:10.2]} 51... Kxg7 {[%clk 0:01:18.9]} 0-1

[Event "*** Monthly 3|2 Blitz Masters"]
[Site "Chess.com"]
[Date "2014.10.28"]
[Round "2"]
[White "chesstatour"]
[Black "DaPazz"]
[Result "1-0"]
[WhiteElo "1806"]
[BlackElo "1857"]
[TimeControl "180+2"]
[EndTime "12:18:09 PDT"]
[Termination "chesstatour won on time"]

1. c4 {[%clk 0:03:00]} 1... c5 {[%clk 0:02:53.6]} 2. Nf3 {[%clk 0:02:59]} 2...
Nf6 {[%clk 0:02:53.4]} 3. Nc3 {[%clk 0:02:59.1]} 3... Nc6 {[%clk 0:02:53.7]} 4.
d4 {[%clk 0:03:00.7]} 4... cxd4 {[%clk 0:02:54.3]} 5. Nxd4 {[%clk 0:03:02.6]}
5... g6 {[%clk 0:02:54.1]} 6. e4 {[%clk 0:03:03]} 6... Bg7 {[%clk 0:02:53.3]} 7.
Be2 {[%clk 0:03:04.4]} 7... O-O {[%clk 0:02:53.9]} 8. O-O {[%clk 0:03:05.2]}
8... d6 {[%clk 0:02:54.7]} 9. Be3 {[%clk 0:03:06]} 9... a6 {[%clk 0:02:53.3]}
10. Kh1 {[%clk 0:03:00.1]} 10... e6 {[%clk 0:02:47.3]} 11. f3 {[%clk 0:02:57.6]}
11... d5 {[%clk 0:02:46.4]} 12. cxd5 {[%clk 0:02:51.1]} 12... exd5 {[%clk
0:02:46.6]} 13. exd5 {[%clk 0:02:45.4]} 13... Nb4 {[%clk 0:02:45.4]} 14. Bg5
{[%clk 0:02:24.7]} 14... h6 {[%clk 0:02:38]} 15. Bxf6 {[%clk 0:02:17.3]} 15...
Bxf6 {[%clk 0:02:37.3]} 16. Bc4 {[%clk 0:02:16]} 16... Bxd4 {[%clk 0:02:14]} 17.
Qxd4 {[%clk 0:02:12.8]} 17... Nc2 {[%clk 0:02:15]} 18. Qd2 {[%clk 0:02:00.4]}
18... Nxa1 {[%clk 0:02:15.3]} 19. Rxa1 {[%clk 0:01:53.6]} 19... Kh7 {[%clk
0:02:08.8]} 20. Qd4 {[%clk 0:01:50.5]} 20... b5 {[%clk 0:02:08.6]} 21. Bb3
{[%clk 0:01:45.6]} 21... Bb7 {[%clk 0:02:08.8]} 22. Ne4 {[%clk 0:01:32.7]} 22...
f5 {[%clk 0:02:02.9]} 23. Nc5 {[%clk 0:01:32.6]} 23... Qb6 {[%clk 0:01:58.5]}
24. Rd1 {[%clk 0:01:24.6]} 24... Rac8 {[%clk 0:01:52.7]} 25. Ne6 {[%clk
0:01:21]} 25... Qxd4 {[%clk 0:01:51.2]} 26. Nxf8+ {[%clk 0:01:18.6]} 26... Kg8
{[%clk 0:01:49.9]} 27. Rxd4 {[%clk 0:00:49.2]} 27... Rc1+ {[%clk 0:01:48]} 28.
Rd1 {[%clk 0:00:46.1]} 28... Rxd1+ {[%clk 0:01:46.2]} 29. Bxd1 {[%clk 0:00:48]}
29... Kxf8 {[%clk 0:01:47.7]} 30. Bb3 {[%clk 0:00:48.9]} 30... Ke7 {[%clk
0:01:49.2]} 31. Kg1 {[%clk 0:00:37.2]} 31... Kd6 {[%clk 0:01:50.1]} 32. a3
{[%clk 0:00:34.5]} 32... Bxd5 {[%clk 0:01:50.8]} 33. Bc2 {[%clk 0:00:36.1]}
33... Ke5 {[%clk 0:01:49.1]} 34. Kf2 {[%clk 0:00:37.5]} 34... g5 {[%clk
0:01:50]} 35. Ke3 {[%clk 0:00:35.7]} 35... f4+ {[%clk 0:01:50.2]} 36. Kf2 {[%clk
0:00:32]} 36... Kd4 {[%clk 0:01:50.3]} 37. g3 {[%clk 0:00:32.8]} 37... Bc4
{[%clk 0:01:49.7]} 38. h4 {[%clk 0:00:29.8]} 38... gxh4 {[%clk 0:01:48.8]} 39.
gxf4 {[%clk 0:00:27.6]} 39... a5 {[%clk 0:01:41.6]} 40. f5 {[%clk 0:00:26.6]}
40... Ke5 {[%clk 0:01:42.5]} 41. Ke3 {[%clk 0:00:23.9]} 1-0

[Event "*** Monthly 3|2 Blitz Masters"]
[Site "Chess.com"]
[Date "2014.10.28"]
[Round "2"]
[White "GMNeiksans"]
[Black "VovAn1991"]
[Result "0-1"]
[WhiteElo "2462"]
[BlackElo "2399"]
[TimeControl "180+2"]
[EndTime "12:18:39 PDT"]
[Termination "VovAn1991 won by resignation"]

1. e4 {[%clk 0:03:00]} 1... c5 {[%clk 0:02:58.5]} 2. Nf3 {[%clk 0:03:00.8]} 2...
d6 {[%clk 0:02:59.6]} 3. Bb5+ {[%clk 0:03:00.4]} 3... Bd7 {[%clk 0:02:56.6]} 4.
Bxd7+ {[%clk 0:03:01.4]} 4... Qxd7 {[%clk 0:02:57]} 5. O-O {[%clk 0:03:02.2]}
5... Nf6 {[%clk 0:02:56.3]} 6. Qe2 {[%clk 0:03:00.9]} 6... Nc6 {[%clk
0:02:54.5]} 7. c3 {[%clk 0:03:01.8]} 7... e6 {[%clk 0:02:55.6]} 8. d4 {[%clk
0:03:02.7]} 8... cxd4 {[%clk 0:02:57.5]} 9. cxd4 {[%clk 0:03:03.7]} 9... d5
{[%clk 0:02:58.9]} 10. e5 {[%clk 0:03:05]} 10... Ne4 {[%clk 0:03:00.2]} 11. Be3
{[%clk 0:03:06]} 11... Be7 {[%clk 0:02:59.2]} 12. Ne1 {[%clk 0:03:07]} 12... f6
{[%clk 0:02:18.9]} 13. f3 {[%clk 0:03:07.6]} 13... Ng5 {[%clk 0:02:19.8]} 14.
Nd3 {[%clk 0:03:08.7]} 14... O-O {[%clk 0:02:11.8]} 15. Nd2 {[%clk 0:03:08.7]}
15... b6 {[%clk 0:02:02.4]} 16. Rad1 {[%clk 0:02:59.9]} 16... Rac8 {[%clk
0:02:02.2]} 17. f4 {[%clk 0:02:55.5]} 17... Ne4 {[%clk 0:01:56.9]} 18. exf6
{[%clk 0:02:18.1]} 18... Bxf6 {[%clk 0:01:42.2]} 19. Nxe4 {[%clk 0:02:10.2]}
19... dxe4 {[%clk 0:01:44.1]} 20. Ne5 {[%clk 0:02:01.3]} 20... Qd5 {[%clk
0:01:44.9]} 21. a3 {[%clk 0:01:54.1]} 21... Na5 {[%clk 0:01:45.5]} 22. Rc1
{[%clk 0:01:30.2]} 22... Nb3 {[%clk 0:01:42.9]} 23. Rxc8 {[%clk 0:01:24.5]}
23... Rxc8 {[%clk 0:01:44.8]} 24. Qa6 {[%clk 0:01:23.4]} 24... Rc7 {[%clk
0:01:37.3]} 25. Rd1 {[%clk 0:01:23.9]} 25... h6 {[%clk 0:01:31]} 26. h3 {[%clk
0:01:24.6]} 26... Rc2 {[%clk 0:00:43.2]} 27. Qa4 {[%clk 0:01:07.5]} 27... Kh7
{[%clk 0:00:34.1]} 28. Re1 {[%clk 0:00:59.8]} 28... a5 {[%clk 0:00:30.7]} 29.
Qe8 {[%clk 0:00:57]} 29... Bxe5 {[%clk 0:00:28.8]} 30. dxe5 {[%clk 0:00:54.4]}
30... Nd4 {[%clk 0:00:26.1]} 31. Bxd4 {[%clk 0:00:39.6]} 31... Qxd4+ {[%clk
0:00:28]} 32. Kh1 {[%clk 0:00:40.7]} 32... e3 {[%clk 0:00:17.1]} 33. f5 {[%clk
0:00:33.5]} 33... exf5 {[%clk 0:00:16.1]} 34. e6 {[%clk 0:00:35]} 34... Qe4
{[%clk 0:00:16.3]} 35. Rg1 {[%clk 0:00:29.2]} 35... e2 {[%clk 0:00:14.6]} 36.
Re1 {[%clk 0:00:20.5]} 36... Rd2 {[%clk 0:00:15.5]} 37. Qh5 {[%clk 0:00:12.4]}
37... Qxe6 {[%clk 0:00:12.5]} 38. Qf3 {[%clk 0:00:11.6]} 38... Qe4 {[%clk
0:00:10.6]} 39. Qf2 {[%clk 0:00:10.6]} 39... Rd1 {[%clk 0:00:10.8]} 40. Kh2
{[%clk 0:00:06.9]} 40... Rxe1 {[%clk 0:00:11.3]} 41. Qxe1 {[%clk 0:00:08.3]}
41... Qf4+ {[%clk 0:00:12.3]} 42. Kg1 {[%clk 0:00:09.2]} 42... Qe3+ {[%clk
0:00:13.4]} 43. Kh2 {[%clk 0:00:10.2]} 43... Qe5+ {[%clk 0:00:14]} 44. Kg1
{[%clk 0:00:11.3]} 44... Qxb2 {[%clk 0:00:15.6]} 45. Kf2 {[%clk 0:00:09.7]}
45... Qd4+ {[%clk 0:00:16.6]} 46. Kf3 {[%clk 0:00:10.5]} 46... Qe4+ {[%clk
0:00:17.3]} 47. Kf2 {[%clk 0:00:11.6]} 47... Qf4+ {[%clk 0:00:17.7]} 48. Kg1
{[%clk 0:00:11.7]} 48... Qf1+ {[%clk 0:00:18.7]} 0-1

[Event "*** Monthly 3|2 Blitz Masters"]
[Site "Chess.com"]
[Date "2014.10.28"]
[Round "3"]
[White "MichiganEagle"]
[Black "GMNeiksans"]
[Result "0-1"]
[WhiteElo "2284"]
[BlackElo "2474"]
[TimeControl "180+2"]
[EndTime "12:25:58 PDT"]
[Termination "GMNeiksans won by resignation"]

1. d4 {[%clk 0:02:53.7]} 1... Nf6 {[%clk 0:02:58.1]} 2. Nf3 {[%clk 0:02:55.2]}
2... e6 {[%clk 0:02:58.9]} 3. Bg5 {[%clk 0:02:55.4]} 3... Be7 {[%clk 0:02:57.2]}
4. Nbd2 {[%clk 0:02:55.2]} 4... c5 {[%clk 0:02:56.8]} 5. e3 {[%clk 0:02:54.7]}
5... Qc7 {[%clk 0:02:53.2]} 6. Bd3 {[%clk 0:02:53.4]} 6... b6 {[%clk 0:02:51.9]}
7. O-O {[%clk 0:02:52.6]} 7... Bb7 {[%clk 0:02:53.2]} 8. c4 {[%clk 0:02:50.4]}
8... d6 {[%clk 0:02:50.2]} 9. Rc1 {[%clk 0:02:50.9]} 9... Nbd7 {[%clk
0:02:51.1]} 10. Qe2 {[%clk 0:02:51.9]} 10... O-O {[%clk 0:02:50.8]} 11. Rfe1
{[%clk 0:02:34.4]} 11... Rfe8 {[%clk 0:02:50.5]} 12. e4 {[%clk 0:02:30.8]} 12...
cxd4 {[%clk 0:02:50.2]} 13. Nxd4 {[%clk 0:02:32.7]} 13... a6 {[%clk 0:02:48.2]}
14. Bb1 {[%clk 0:02:23.7]} 14... Bf8 {[%clk 0:02:33.7]} 15. N2f3 {[%clk
0:02:14]} 15... g6 {[%clk 0:02:19.6]} 16. h4 {[%clk 0:02:02.5]} 16... Bg7 {[%clk
0:02:20.1]} 17. b3 {[%clk 0:01:57.7]} 17... Rac8 {[%clk 0:02:14.2]} 18. Red1
{[%clk 0:01:48.8]} 18... Nc5 {[%clk 0:02:04.4]} 19. e5 {[%clk 0:01:46.9]} 19...
dxe5 {[%clk 0:01:59]} 20. Qxe5 {[%clk 0:01:34.9]} 20... Qxe5 {[%clk 0:01:51.1]}
21. Nxe5 {[%clk 0:01:36.8]} 21... Nfe4 {[%clk 0:01:48.4]} 22. Bf4 {[%clk
0:01:29.8]} 22... f6 {[%clk 0:01:47.1]} 23. b4 {[%clk 0:00:45.3]} 23... fxe5
{[%clk 0:01:46.4]} 24. bxc5 {[%clk 0:00:45.8]} 24... Nxc5 {[%clk 0:01:41.6]} 0-1

[Event "*** Monthly 3|2 Blitz Masters"]
[Site "Chess.com"]
[Date "2014.10.28"]
[Round "3"]
[White "mokerslag"]
[Black "jcibarra"]
[Result "0-1"]
[WhiteElo "2306"]
[BlackElo "2458"]
[TimeControl "180+2"]
[EndTime "12:26:08 PDT"]
[Termination "jcibarra won by resignation"]

1. e4 {[%clk 0:02:57.8]} 1... c5 {[%clk 0:02:56.8]} 2. Nf3 {[%clk 0:02:58.9]}
2... e6 {[%clk 0:02:58]} 3. d4 {[%clk 0:02:59.5]} 3... cxd4 {[%clk 0:02:58.9]}
4. Nxd4 {[%clk 0:03:01.4]} 4... Bc5 {[%clk 0:02:59.2]} 5. Nb3 {[%clk 0:03:00.4]}
5... Bb6 {[%clk 0:03:00.2]} 6. Nc3 {[%clk 0:03:00.8]} 6... Ne7 {[%clk
0:03:01.4]} 7. g3 {[%clk 0:03:01.3]} 7... O-O {[%clk 0:03:02.4]} 8. Bg2 {[%clk
0:03:02.8]} 8... f5 {[%clk 0:03:03.8]} 9. O-O {[%clk 0:03:03.6]} 9... fxe4
{[%clk 0:03:03.5]} 10. Bxe4 {[%clk 0:03:01.4]} 10... d5 {[%clk 0:03:04.2]} 11.
Bg2 {[%clk 0:03:02.2]} 11... Nbc6 {[%clk 0:03:04.9]} 12. Na4 {[%clk 0:03:01.2]}
12... Bc7 {[%clk 0:03:04.4]} 13. Be3 {[%clk 0:02:59.4]} 13... e5 {[%clk
0:03:01.8]} 14. c3 {[%clk 0:02:53.5]} 14... b6 {[%clk 0:02:57.7]} 15. Qd2 {[%clk
0:02:48.2]} 15... Be6 {[%clk 0:02:54.7]} 16. Rad1 {[%clk 0:02:48.1]} 16... Qd7
{[%clk 0:02:45.8]} 17. Nc1 {[%clk 0:02:23.8]} 17... h6 {[%clk 0:02:34.9]} 18. b4
{[%clk 0:02:22.2]} 18... Rad8 {[%clk 0:02:33.8]} 19. Nb3 {[%clk 0:02:18.7]}
19... d4 {[%clk 0:02:28.4]} 20. cxd4 {[%clk 0:02:12.2]} 20... exd4 {[%clk
0:02:24.8]} 21. Nxd4 {[%clk 0:01:14.9]} 21... Nxd4 {[%clk 0:02:24.1]} 22. Bxd4
{[%clk 0:01:16.8]} 22... Qxa4 {[%clk 0:02:21.4]} 23. Qc3 {[%clk 0:01:18.3]}
23... Nf5 {[%clk 0:01:36.6]} 24. Qxc7 {[%clk 0:01:07.5]} 24... Nxd4 {[%clk
0:01:35.4]} 25. Qe5 {[%clk 0:01:09.1]} 25... Qxb4 {[%clk 0:01:20.6]} 26. Rxd4
{[%clk 0:01:09.8]} 26... Qxd4 {[%clk 0:01:20.5]} 27. Qxe6+ {[%clk 0:01:11.7]}
27... Kh8 {[%clk 0:01:21.2]} 28. Be4 {[%clk 0:01:09.3]} 28... Rfe8 {[%clk
0:01:14.5]} 0-1

[Event "*** Monthly 3|2 Blitz Masters"]
[Site "Chess.com"]
[Date "2014.10.28"]
[Round "3"]
[White "kevin9512"]
[Black "KingPetrosian"]
[Result "1-0"]
[WhiteElo "1865"]
[BlackElo "2071"]
[TimeControl "180+2"]
[EndTime "12:26:48 PDT"]
[Termination "kevin9512 won by resignation"]

1. d4 {[%clk 0:02:02.2]} 1... d5 {[%clk 0:02:56.7]} 2. c4 {[%clk 0:01:54.5]}
2... e6 {[%clk 0:02:56.5]} 3. Nc3 {[%clk 0:01:55.5]} 3... Nf6 {[%clk 0:02:57]}
4. cxd5 {[%clk 0:01:56.9]} 4... exd5 {[%clk 0:02:56.8]} 5. Bg5 {[%clk
0:01:57.7]} 5... Be7 {[%clk 0:02:56.8]} 6. Qc2 {[%clk 0:01:59]} 6... h6 {[%clk
0:02:56.3]} 7. Bh4 {[%clk 0:01:59.9]} 7... c6 {[%clk 0:02:53.9]} 8. e3 {[%clk
0:02:01.2]} 8... Nbd7 {[%clk 0:02:53.8]} 9. Bd3 {[%clk 0:02:02.5]} 9... Nb6
{[%clk 0:02:52]} 10. Nge2 {[%clk 0:02:03.1]} 10... Be6 {[%clk 0:02:51.6]} 11.
O-O {[%clk 0:02:02.9]} 11... Qd7 {[%clk 0:02:52.3]} 12. f3 {[%clk 0:02:02.1]}
12... g5 {[%clk 0:02:52.7]} 13. Bf2 {[%clk 0:02:01.6]} 13... O-O-O {[%clk
0:02:51]} 14. e4 {[%clk 0:02:02.7]} 14... h5 {[%clk 0:02:47.5]} 15. a4 {[%clk
0:01:56.8]} 15... a5 {[%clk 0:02:45.9]} 16. e5 {[%clk 0:01:04.5]} 16... Ne8
{[%clk 0:02:43.3]} 17. Qb3 {[%clk 0:01:05.5]} 17... Nc7 {[%clk 0:02:40.4]} 18.
Qxb6 {[%clk 0:01:04.3]} 18... Na8 {[%clk 0:02:36.3]} 19. Qxa5 {[%clk 0:01:04.8]}
19... Kb8 {[%clk 0:02:34.6]} 20. b4 {[%clk 0:01:02.1]} 20... Qc7 {[%clk
0:02:34.2]} 21. Qxc7+ {[%clk 0:01:02.8]} 21... Kxc7 {[%clk 0:02:36.1]} 22. b5
{[%clk 0:01:04.1]} 22... Nb6 {[%clk 0:02:34.9]} 23. a5 {[%clk 0:01:04.4]} 23...
Nd7 {[%clk 0:02:34.3]} 24. b6+ {[%clk 0:01:05.3]} 24... Kb8 {[%clk 0:02:32.7]}
25. Rfb1 {[%clk 0:01:05.8]} 25... g4 {[%clk 0:02:31]} 26. a6 {[%clk 0:01:06.4]}
26... gxf3 {[%clk 0:02:25.8]} 27. gxf3 {[%clk 0:01:06.2]} 27... Rhg8+ {[%clk
0:02:26.8]} 28. Kf1 {[%clk 0:01:05.9]} 28... Rg7 {[%clk 0:02:23.4]} 29. axb7
{[%clk 0:01:04.5]} 29... Kxb7 {[%clk 0:02:23.8]} 30. Ra7+ {[%clk 0:01:04.8]}
30... Kb8 {[%clk 0:02:18.6]} 31. Nf4 {[%clk 0:01:05.5]} 31... Rg5 {[%clk
0:02:04.5]} 32. Bh4 {[%clk 0:01:04.3]} 32... Rg7 {[%clk 0:01:59.9]} 33. Bxe7
{[%clk 0:01:04.4]} 33... Rdg8 {[%clk 0:02:00.3]} 34. Kf2 {[%clk 0:00:58.6]}
34... Re8 {[%clk 0:01:52.8]} 35. Bf6 {[%clk 0:00:58.5]} 35... Rgg8 {[%clk
0:01:48.5]} 36. Ra2 {[%clk 0:00:56.1]} 36... Nxf6 {[%clk 0:01:48.3]} 37. exf6
{[%clk 0:00:57]} 37... Rg5 {[%clk 0:01:46.9]} 38. Nxe6 {[%clk 0:00:57.6]} 38...
fxe6 {[%clk 0:01:45.8]} 39. b7 {[%clk 0:00:58.4]} 39... Reg8 {[%clk 0:01:42.3]}
40. Ra8+ {[%clk 0:00:59.1]} 40... Kc7 {[%clk 0:01:40.5]} 41. b8=Q+ {[%clk
0:00:58.4]} 41... Rxb8 {[%clk 0:01:41.2]} 42. Raxb8 {[%clk 0:00:59.8]} 1-0